[Event "Titled Tuesday Blitz September 27 Early 2022"]
[White "Winterberg, Lukas"]
[Black "De Silva, L M S T"]
[WhiteFideId "24622702"]
[BlackFideId "9953698"]
[WhiteElo "2349"]
[BlackElo "1727"]
[Result "1-0"]
[Round "04"]
[TimeControl "180+1"]
[Date "2022.09.27"]
[WhiteClock "0:00:14"]
[BlackClock "0:00:01"]

1. Nf3 {[%clk 0:03:00]}  Nf6 {[%clk 0:02:59]} 2. b3 {[%clk 0:02:59]}  b6 {[%clk 0:03:00]} 3. Bb2 {[%clk 0:02:59]}  Bb7 {[%clk 0:03:00]} 4. g3 {[%clk 0:03:00]}  g6 {[%clk 0:03:01]} 5. Bg2 {[%clk 0:03:00]}  Bg7 {[%clk 0:03:01]} 6. O-O {[%clk 0:03:01]}  O-O {[%clk 0:03:02]} 7. c4 {[%clk 0:03:02]}  e6 {[%clk 0:03:02]} 8. d4 {[%clk 0:03:00]}  d6 {[%clk 0:03:02]} 9. Qc2 {[%clk 0:02:59]}  Nbd7 {[%clk 0:02:55]} 10. Nbd2 {[%clk 0:02:59]}  Qe7 {[%clk 0:02:54]} 11. e4 {[%clk 0:02:59]}  c5 {[%clk 0:02:54]} 12. d5 {[%clk 0:02:59]}  e5 {[%clk 0:02:53]} 13. Ne1 {[%clk 0:02:58]}  Nh5 {[%clk 0:02:53]} 14. Nd3 {[%clk 0:02:58]}  f5 {[%clk 0:02:51]} 15. f4 {[%clk 0:02:59]}  exf4 {[%clk 0:02:49]} 16. Bxg7 {[%clk 0:02:57]}  Qxg7 {[%clk 0:02:50]} 17. gxf4 {[%clk 0:02:33]}  Ndf6 {[%clk 0:02:43]} 18. e5 {[%clk 0:02:23]}  Ng4 {[%clk 0:02:42]} 19. Rae1 {[%clk 0:02:16]}  Rae8 {[%clk 0:02:43]} 20. Nf3 {[%clk 0:02:10]}  g5 {[%clk 0:02:19]} 21. e6 {[%clk 0:01:48]}  gxf4 {[%clk 0:02:17]} 22. Kh1 {[%clk 0:01:30]}  Ne3 {[%clk 0:02:15]} 23. Qf2 {[%clk 0:01:27]}  Nxf1 {[%clk 0:01:42]} 24. Rxf1 {[%clk 0:01:28]}  Rf6 {[%clk 0:01:33]} 25. Nh4 {[%clk 0:01:20]}  Rh6 {[%clk 0:00:26]} 26. Nxf5 {[%clk 0:00:58]}  Ng3+ {[%clk 0:00:26]} 27. Qxg3 {[%clk 0:00:56]}  fxg3 {[%clk 0:00:25]} 28. Nxg7 {[%clk 0:00:56]}  Kxg7 {[%clk 0:00:26]} 29. Rf7+ {[%clk 0:00:56]}  Kg8 {[%clk 0:00:24]} 30. Rxb7 {[%clk 0:00:55]}  Rxh2+ {[%clk 0:00:20]} 31. Kg1 {[%clk 0:00:54]}  h5 {[%clk 0:00:21]} 32. Nf4 {[%clk 0:00:40]}  Rf8 {[%clk 0:00:19]} 33. e7 {[%clk 0:00:37]}  Re8 {[%clk 0:00:16]} 34. Be4 {[%clk 0:00:33]}  Rf2 {[%clk 0:00:01]} 35. Bg6 {[%clk 0:00:28]}  Rxe7 {[%clk 0:00:02]} 36. Rxe7 {[%clk 0:00:27]}  Rxf4 {[%clk 0:00:03]} 37. Bxh5 {[%clk 0:00:26]}  Rf2 {[%clk 0:00:03]} 38. Re2 {[%clk 0:00:23]}  Rf4 {[%clk 0:00:02]} 39. Kg2 {[%clk 0:00:23]}  Rd4 {[%clk 0:00:02]} 40. Kxg3 {[%clk 0:00:23]}  Kg7 {[%clk 0:00:03]} 41. Bf3 {[%clk 0:00:21]}  b5 {[%clk 0:00:03]} 42. Re4 {[%clk 0:00:20]}  Rd2 {[%clk 0:00:02]} 43. cxb5 {[%clk 0:00:20]}  Rxa2 {[%clk 0:00:02]} 44. Ra4 {[%clk 0:00:21]}  Rb2 {[%clk 0:00:03]} 45. Rxa7+ {[%clk 0:00:21]}  Kf6 {[%clk 0:00:03]} 46. Bd1 {[%clk 0:00:15]}  Rb1 {[%clk 0:00:03]} 47. b6 {[%clk 0:00:14]}  Rxb3+ {[%clk 0:00:01]} 48. Bxb3 {[%clk 0:00:14]} 1-0


[Site "https://www.chess.com"]

[Event "Titled Tuesday Blitz September 27 Early 2022"]
[White "Yang, Ray"]
[Black "Alexikov, Alexander"]
[WhiteFideId "3220281"]
[BlackFideId "14103958"]
[WhiteElo "1796"]
[BlackElo "2222"]
[Result "0-1"]
[Round "04"]
[TimeControl "180+1"]
[Date "2022.09.27"]
[WhiteClock "0:00:23"]
[BlackClock "0:01:02"]

1. d4 {[%clk 0:03:00]}  Nf6 {[%clk 0:02:58]} 2. c4 {[%clk 0:03:00]}  g6 {[%clk 0:02:58]} 3. g3 {[%clk 0:02:59]}  Bg7 {[%clk 0:02:58]} 4. Bg2 {[%clk 0:02:58]}  c6 {[%clk 0:02:58]} 5. e4 {[%clk 0:02:56]}  d6 {[%clk 0:02:57]} 6. Nc3 {[%clk 0:02:55]}  O-O {[%clk 0:02:57]} 7. Nf3 {[%clk 0:02:53]}  Qa5 {[%clk 0:02:56]} 8. O-O {[%clk 0:02:52]}  Qh5 {[%clk 0:02:53]} 9. Ng5 {[%clk 0:02:49]}  Bg4 {[%clk 0:02:36]} 10. f3 {[%clk 0:02:45]}  Bd7 {[%clk 0:02:31]} 11. e5 {[%clk 0:02:30]}  Ne8 {[%clk 0:02:19]} 12. f4 {[%clk 0:02:25]}  Qxd1 {[%clk 0:02:17]} 13. Rxd1 {[%clk 0:02:23]}  f6 {[%clk 0:02:14]} 14. Nf3 {[%clk 0:01:47]}  fxe5 {[%clk 0:02:10]} 15. dxe5 {[%clk 0:01:45]}  Bg4 {[%clk 0:02:10]} 16. Re1 {[%clk 0:01:38]}  Nd7 {[%clk 0:01:40]} 17. e6 {[%clk 0:01:25]}  Nc5 {[%clk 0:01:37]} 18. Ng5 {[%clk 0:01:10]}  Nc7 {[%clk 0:01:19]} 19. Be3 {[%clk 0:00:32]}  Nd3 {[%clk 0:01:09]} 20. Reb1 {[%clk 0:00:23]}  Nxb2 {[%clk 0:01:02]} 0-1


[Site "https://www.chess.com"]

[Event "Titled Tuesday Blitz September 27 Early 2022"]
[White "Zaksaite, Salomeja"]
[Black "Ribeiro, Matheus Mendes Domingues"]
[WhiteFideId "12801496"]
[BlackFideId "324226923"]
[WhiteElo "1953"]
[BlackElo "2047"]
[Result "0-1"]
[Round "04"]
[TimeControl "180+1"]
[Date "2022.09.27"]
[WhiteClock "0:00:01"]
[BlackClock "0:03:01"]

1. e4 {[%clk 0:00:21]}  c5 {[%clk 0:02:53]} 2. Nf3 {[%clk 0:00:20]}  e6 {[%clk 0:02:54]} 3. d4 {[%clk 0:00:20]}  cxd4 {[%clk 0:02:55]} 4. Nxd4 {[%clk 0:00:21]}  Nf6 {[%clk 0:02:56]} 5. Nc3 {[%clk 0:00:20]}  Nc6 {[%clk 0:02:57]} 6. Nxc6 {[%clk 0:00:10]}  bxc6 {[%clk 0:02:57]} 7. e5 {[%clk 0:00:10]}  Nd5 {[%clk 0:02:58]} 8. Ne4 {[%clk 0:00:11]}  Qc7 {[%clk 0:02:58]} 9. f4 {[%clk 0:00:09]}  Qb6 {[%clk 0:02:58]} 10. c4 {[%clk 0:00:08]}  Bb4+ {[%clk 0:02:59]} 11. Bd2 {[%clk 0:00:08]}  Qe3+ {[%clk 0:02:59]} 12. Qe2 {[%clk 0:00:05]}  Bxd2+ {[%clk 0:02:59]} 13. Nxd2 {[%clk 0:00:05]}  Qxe2+ {[%clk 0:02:59]} 14. Kxe2 {[%clk 0:00:04]}  Nxf4+ {[%clk 0:03:00]} 15. Kf3 {[%clk 0:00:03]}  Ng6 {[%clk 0:03:01]} 16. Re1 {[%clk 0:00:02]}  O-O {[%clk 0:03:01]} 17. h4 {[%clk 0:00:02]}  f6 {[%clk 0:03:01]} 18. h5 {[%clk 0:00:02]}  fxe5+ {[%clk 0:03:00]} 19. Ke2 {[%clk 0:00:01]}  Nf4+ {[%clk 0:03:01]} 0-1


[Site "https://www.chess.com"]

[Event "Titled Tuesday Blitz September 27 Early 2022"]
[White "Zanette, Edgard Vinicius"]
[Black "Matt, Fabian"]
[WhiteFideId "2109263"]
[BlackFideId "1623303"]
[WhiteElo "2182"]
[BlackElo "2287"]
[Result "1-0"]
[Round "04"]
[TimeControl "180+1"]
[Date "2022.09.27"]
[WhiteClock "0:02:19"]
[BlackClock "0:01:30"]

1. e4 {[%clk 0:03:00]}  e5 {[%clk 0:02:58]} 2. Nc3 {[%clk 0:02:59]}  Nc6 {[%clk 0:02:58]} 3. f4 {[%clk 0:02:56]}  exf4 {[%clk 0:02:55]} 4. Nf3 {[%clk 0:02:55]}  g5 {[%clk 0:02:47]} 5. Bc4 {[%clk 0:02:45]}  g4 {[%clk 0:02:42]} 6. O-O {[%clk 0:02:42]}  gxf3 {[%clk 0:02:38]} 7. Qxf3 {[%clk 0:02:40]}  Bc5+ {[%clk 0:02:28]} 8. Kh1 {[%clk 0:02:36]}  Qe7 {[%clk 0:02:12]} 9. Nd5 {[%clk 0:02:33]}  Qd6 {[%clk 0:02:08]} 10. c3 {[%clk 0:02:30]}  Ne5 {[%clk 0:01:59]} 11. Qxf4 {[%clk 0:02:27]}  Nxc4 {[%clk 0:01:59]} 12. Qxf7+ {[%clk 0:02:26]}  Kd8 {[%clk 0:02:00]} 13. d4 {[%clk 0:02:25]}  Qe6 {[%clk 0:01:42]} 14. Bg5+ {[%clk 0:02:20]}  Be7 {[%clk 0:01:30]} 15. Qf8# {[%clk 0:02:19]} 1-0


[Site "https://www.chess.com"]

[Event "Titled Tuesday Blitz September 27 Early 2022"]
[White "Zheenbekov, Nurgazy"]
[Black "Jimenez Almeida, Luis David"]
[WhiteFideId "13800485"]
[BlackFideId "22242244"]
[WhiteElo "1932"]
[BlackElo "2077"]
[Result "0-1"]
[Round "04"]
[TimeControl "180+1"]
[Date "2022.09.27"]
[WhiteClock "0:00:02"]
[BlackClock "0:00:17"]

1. d4 {[%clk 0:02:59]}  g6 {[%clk 0:02:57]} 2. c4 {[%clk 0:02:57]}  Bg7 {[%clk 0:02:57]} 3. Nc3 {[%clk 0:02:53]}  c5 {[%clk 0:02:57]} 4. d5 {[%clk 0:02:52]}  Bxc3+ {[%clk 0:02:57]} 5. bxc3 {[%clk 0:02:51]}  Qa5 {[%clk 0:02:58]} 6. Bd2 {[%clk 0:02:50]}  f5 {[%clk 0:02:58]} 7. Nf3 {[%clk 0:02:49]}  Nf6 {[%clk 0:02:58]} 8. g3 {[%clk 0:02:49]}  d6 {[%clk 0:02:58]} 9. Bg2 {[%clk 0:02:49]}  Nbd7 {[%clk 0:02:58]} 10. O-O {[%clk 0:02:49]}  Nb6 {[%clk 0:02:59]} 11. Qb3 {[%clk 0:02:43]}  Qa4 {[%clk 0:02:57]} 12. Ng5 {[%clk 0:02:27]}  Qxc4 {[%clk 0:02:43]} 13. e4 {[%clk 0:01:57]}  fxe4 {[%clk 0:02:38]} 14. Rfe1 {[%clk 0:01:57]}  Qxb3 {[%clk 0:02:22]} 15. axb3 {[%clk 0:01:56]}  Nbxd5 {[%clk 0:02:13]} 16. c4 {[%clk 0:01:47]}  Nb4 {[%clk 0:02:03]} 17. Nxe4 {[%clk 0:01:46]}  Nxe4 {[%clk 0:02:01]} 18. Bxe4 {[%clk 0:01:38]}  Nc6 {[%clk 0:01:36]} 19. Bxc6+ {[%clk 0:01:22]}  bxc6 {[%clk 0:01:35]} 20. Bg5 {[%clk 0:01:22]}  e6 {[%clk 0:01:13]} 21. Rad1 {[%clk 0:01:17]}  Kd7 {[%clk 0:01:10]} 22. Bf4 {[%clk 0:00:28]}  d5 {[%clk 0:01:10]} 23. cxd5 {[%clk 0:00:19]}  cxd5 {[%clk 0:01:09]} 24. Rc1 {[%clk 0:00:19]}  Bb7 {[%clk 0:00:46]} 25. Rxc5 {[%clk 0:00:19]}  Rhc8 {[%clk 0:00:46]} 26. Rec1 {[%clk 0:00:18]}  Rc6 {[%clk 0:00:29]} 27. Rxc6 {[%clk 0:00:17]}  Bxc6 {[%clk 0:00:29]} 28. Kf1 {[%clk 0:00:16]}  a5 {[%clk 0:00:27]} 29. Ke1 {[%clk 0:00:16]}  a4 {[%clk 0:00:26]} 30. bxa4 {[%clk 0:00:09]}  Rxa4 {[%clk 0:00:27]} 31. Rc2 {[%clk 0:00:07]}  Ra1+ {[%clk 0:00:23]} 32. Kd2 {[%clk 0:00:07]}  Rf1 {[%clk 0:00:20]} 33. Kc3 {[%clk 0:00:03]}  Re1 {[%clk 0:00:18]} 34. h4 {[%clk 0:00:02]}  e5 {[%clk 0:00:17]} 0-1


[Site "https://www.chess.com"]

[Event "Titled Tuesday Blitz September 27 Early 2022"]
[White "Aguilar, Juan"]
[Black "Orlov, Georgi"]
[WhiteFideId "3800091"]
[BlackFideId "2011271"]
[WhiteElo "2336"]
[BlackElo "2578"]
[Result "0-1"]
[Round "05"]
[TimeControl "180+1"]
[Date "2022.09.27"]
[WhiteClock "0:00:14"]
[BlackClock "0:01:32"]

1. g3 {[%clk 0:03:00]}  b6 {[%clk 0:03:00]} 2. Bg2 {[%clk 0:03:00]}  Nc6 {[%clk 0:03:00]} 3. d3 {[%clk 0:02:59]}  Bb7 {[%clk 0:02:58]} 4. Nf3 {[%clk 0:02:59]}  Nf6 {[%clk 0:02:57]} 5. O-O {[%clk 0:02:59]}  e6 {[%clk 0:02:57]} 6. c4 {[%clk 0:02:58]}  d5 {[%clk 0:02:53]} 7. b3 {[%clk 0:02:55]}  Be7 {[%clk 0:02:51]} 8. Bb2 {[%clk 0:02:54]}  O-O {[%clk 0:02:50]} 9. Nbd2 {[%clk 0:02:53]}  a5 {[%clk 0:02:50]} 10. a3 {[%clk 0:02:53]}  Qd7 {[%clk 0:02:42]} 11. Qc2 {[%clk 0:02:52]}  Rfd8 {[%clk 0:02:41]} 12. Rad1 {[%clk 0:02:45]}  Qe8 {[%clk 0:02:38]} 13. e4 {[%clk 0:02:42]}  dxe4 {[%clk 0:02:35]} 14. Nxe4 {[%clk 0:02:35]}  Nxe4 {[%clk 0:02:34]} 15. dxe4 {[%clk 0:02:34]}  Qf8 {[%clk 0:02:34]} 16. Qc1 {[%clk 0:02:31]}  Bc5 {[%clk 0:02:29]} 17. h4 {[%clk 0:02:22]}  h6 {[%clk 0:02:28]} 18. h5 {[%clk 0:01:47]}  Qe7 {[%clk 0:02:16]} 19. g4 {[%clk 0:01:41]}  e5 {[%clk 0:02:10]} 20. Qa1 {[%clk 0:01:14]}  f6 {[%clk 0:02:08]} 21. Nh4 {[%clk 0:01:10]}  Nd4 {[%clk 0:02:07]} 22. Nf5 {[%clk 0:00:58]}  Nxf5 {[%clk 0:02:05]} 23. gxf5 {[%clk 0:00:46]}  Rxd1 {[%clk 0:01:55]} 24. Rxd1 {[%clk 0:00:45]}  Rd8 {[%clk 0:01:55]} 25. Bf3 {[%clk 0:00:39]}  Rd6 {[%clk 0:01:40]} 26. Qc1 {[%clk 0:00:30]}  Qd8 {[%clk 0:01:35]} 27. Rxd6 {[%clk 0:00:26]}  Qxd6 {[%clk 0:01:35]} 28. a4 {[%clk 0:00:20]}  Qd3 {[%clk 0:01:33]} 29. Qe1 {[%clk 0:00:14]}  Qxf3 {[%clk 0:01:32]} 0-1


[Site "https://www.chess.com"]

[Event "Titled Tuesday Blitz September 27 Early 2022"]
[White "Ahn, Hongjin"]
[Black "Hafiz, Arif Abdul"]
[WhiteFideId "13201492"]
[BlackFideId "7104227"]
[WhiteElo "2565"]
[BlackElo "2750"]
[Result "1/2-1/2"]
[Round "05"]
[TimeControl "180+1"]
[Date "2022.09.27"]
[WhiteClock "0:00:22"]
[BlackClock "0:01:04"]

1. c4 {[%clk 0:03:00]}  e5 {[%clk 0:02:59]} 2. Nf3 {[%clk 0:02:59]}  Nc6 {[%clk 0:02:58]} 3. Nc3 {[%clk 0:02:55]}  Nf6 {[%clk 0:02:58]} 4. e4 {[%clk 0:02:55]}  Bc5 {[%clk 0:02:58]} 5. Nxe5 {[%clk 0:02:54]}  Nxe5 {[%clk 0:02:54]} 6. d4 {[%clk 0:02:54]}  Bd6 {[%clk 0:02:54]} 7. c5 {[%clk 0:02:45]}  Bxc5 {[%clk 0:02:47]} 8. dxe5 {[%clk 0:02:43]}  Ng8 {[%clk 0:02:45]} 9. Bc4 {[%clk 0:02:40]}  Ne7 {[%clk 0:02:33]} 10. Bg5 {[%clk 0:02:32]}  h6 {[%clk 0:02:30]} 11. Qh5 {[%clk 0:02:29]}  O-O {[%clk 0:02:29]} 12. Nd5 {[%clk 0:01:24]}  hxg5 {[%clk 0:02:10]} 13. Nf6+ {[%clk 0:01:23]}  gxf6 {[%clk 0:02:10]} 14. exf6 {[%clk 0:01:23]}  d5 {[%clk 0:01:49]} 15. Qh6 {[%clk 0:01:13]}  Nf5 {[%clk 0:01:49]} 16. exf5 {[%clk 0:01:02]}  Re8+ {[%clk 0:01:49]} 17. Kf1 {[%clk 0:00:59]}  Bf8 {[%clk 0:01:50]} 18. Qxg5+ {[%clk 0:00:59]}  Kh7 {[%clk 0:01:37]} 19. Qh5+ {[%clk 0:00:33]}  Kg8 {[%clk 0:01:27]} 20. Qg5+ {[%clk 0:00:23]}  Kh7 {[%clk 0:01:23]} 21. Qh5+ {[%clk 0:00:24]}  Kg8 {[%clk 0:01:04]} 22. Qg5+ {[%clk 0:00:22]} 1/2-1/2


[Site "https://www.chess.com"]

[Event "Titled Tuesday Blitz September 27 Early 2022"]
[White "Aldokhin, Ivan"]
[Black "Srihari L R"]
[WhiteFideId "24115720"]
[BlackFideId "46617116"]
[WhiteElo "2243"]
[BlackElo "2208"]
[Result "0-1"]
[Round "05"]
[TimeControl "180+1"]
[Date "2022.09.27"]
[WhiteClock "0:00:03"]
[BlackClock "0:00:37"]

1. e4 {[%clk 0:02:18]}  e6 {[%clk 0:02:55]} 2. d4 {[%clk 0:02:18]}  d5 {[%clk 0:02:53]} 3. Nc3 {[%clk 0:02:18]}  Nf6 {[%clk 0:02:51]} 4. e5 {[%clk 0:02:18]}  Nfd7 {[%clk 0:02:51]} 5. f4 {[%clk 0:02:19]}  c5 {[%clk 0:02:51]} 6. Nf3 {[%clk 0:02:19]}  Nc6 {[%clk 0:02:52]} 7. Be3 {[%clk 0:02:20]}  a6 {[%clk 0:02:52]} 8. Qd2 {[%clk 0:02:20]}  b5 {[%clk 0:02:51]} 9. dxc5 {[%clk 0:02:16]}  Bxc5 {[%clk 0:02:50]} 10. Bd3 {[%clk 0:01:54]}  d4 {[%clk 0:02:44]} 11. Nxd4 {[%clk 0:01:53]}  Bxd4 {[%clk 0:02:08]} 12. Bxd4 {[%clk 0:01:52]}  Nxd4 {[%clk 0:02:09]} 13. Be4 {[%clk 0:01:52]}  Nb6 {[%clk 0:02:01]} 14. O-O-O {[%clk 0:01:50]}  b4 {[%clk 0:01:57]} 15. Nb1 {[%clk 0:01:10]}  Rb8 {[%clk 0:01:37]} 16. Qxd4 {[%clk 0:01:04]}  Qxd4 {[%clk 0:01:36]} 17. Rxd4 {[%clk 0:01:05]}  a5 {[%clk 0:01:37]} 18. Rhd1 {[%clk 0:00:58]}  Ke7 {[%clk 0:01:33]} 19. a3 {[%clk 0:00:53]}  bxa3 {[%clk 0:01:22]} 20. Nxa3 {[%clk 0:00:53]}  Bb7 {[%clk 0:01:21]} 21. Nc4 {[%clk 0:00:37]}  Bxe4 {[%clk 0:01:12]} 22. Rxe4 {[%clk 0:00:25]}  Nd5 {[%clk 0:01:06]} 23. Nxa5 {[%clk 0:00:24]}  Rb6 {[%clk 0:00:48]} 24. c4 {[%clk 0:00:23]}  Rc8 {[%clk 0:00:44]} 25. Kb1 {[%clk 0:00:20]}  Nc3+ {[%clk 0:00:43]} 26. Kc2 {[%clk 0:00:12]}  Nxe4 {[%clk 0:00:43]} 27. Rd4 {[%clk 0:00:10]}  Nc5 {[%clk 0:00:41]} 28. Kc3 {[%clk 0:00:06]}  Na4+ {[%clk 0:00:41]} 29. Kd3 {[%clk 0:00:03]}  Nxb2+ {[%clk 0:00:40]} 30. Kc3 {[%clk 0:00:03]}  Na4+ {[%clk 0:00:40]} 31. Kd3 {[%clk 0:00:04]}  Ra6 {[%clk 0:00:40]} 32. Nb7 {[%clk 0:00:03]}  Nc5+ {[%clk 0:00:38]} 33. Kc3 {[%clk 0:00:03]}  Nxb7 {[%clk 0:00:37]} 0-1


[Site "https://www.chess.com"]

[Event "Titled Tuesday Blitz September 27 Early 2022"]
[White "Alexikov, Alexander"]
[Black "Sai Han Thiha"]
[WhiteFideId "14103958"]
[BlackFideId "13012290"]
[WhiteElo "2222"]
[BlackElo "1791"]
[Result "0-1"]
[Round "05"]
[TimeControl "180+1"]
[Date "2022.09.27"]
[WhiteClock "0:01:51"]
[BlackClock "0:00:29"]

1. e4 {[%clk 0:03:00]}  c6 {[%clk 0:01:42]} 2. d4 {[%clk 0:02:58]}  d5 {[%clk 0:01:43]} 3. Nc3 {[%clk 0:02:58]}  dxe4 {[%clk 0:01:43]} 4. Nxe4 {[%clk 0:02:58]}  Nf6 {[%clk 0:01:44]} 5. Nxf6+ {[%clk 0:02:55]}  exf6 {[%clk 0:01:44]} 6. c3 {[%clk 0:02:54]}  Bd6 {[%clk 0:01:45]} 7. Bd3 {[%clk 0:02:53]}  O-O {[%clk 0:01:44]} 8. Qc2 {[%clk 0:02:53]}  Re8+ {[%clk 0:01:44]} 9. Ne2 {[%clk 0:02:53]}  h5 {[%clk 0:01:43]} 10. Be3 {[%clk 0:02:50]}  Nd7 {[%clk 0:01:43]} 11. O-O-O {[%clk 0:02:48]}  Nf8 {[%clk 0:01:38]} 12. Kb1 {[%clk 0:02:43]}  b5 {[%clk 0:01:33]} 13. h3 {[%clk 0:02:37]}  h4 {[%clk 0:01:32]} 14. Rhe1 {[%clk 0:02:33]}  Qc7 {[%clk 0:01:26]} 15. Qd2 {[%clk 0:02:29]}  Ng6 {[%clk 0:01:08]} 16. Ng1 {[%clk 0:02:21]}  Be6 {[%clk 0:01:03]} 17. Nf3 {[%clk 0:02:16]}  Bd5 {[%clk 0:00:28]} 18. Bxg6 {[%clk 0:01:58]}  Bxf3 {[%clk 0:00:27]} 19. Bxf7+ {[%clk 0:01:55]}  Qxf7 {[%clk 0:00:28]} 20. gxf3 {[%clk 0:01:54]}  Qd5 {[%clk 0:00:29]} 21. Bf4 {[%clk 0:01:51]}  Qf5+ {[%clk 0:00:29]} 0-1


[Site "https://www.chess.com"]

[Event "Titled Tuesday Blitz September 27 Early 2022"]
[White "Aliakbarov, Anar"]
[Black "Pacheco Lugo, Alejandro Jose"]
[WhiteFideId "13401858"]
[BlackFideId "3903745"]
[WhiteElo "2210"]
[BlackElo "2146"]
[Result "1/2-1/2"]
[Round "05"]
[TimeControl "180+1"]
[Date "2022.09.27"]
[WhiteClock "0:00:56"]
[BlackClock "0:00:08"]

1. d4 {[%clk 0:03:00]}  Nf6 {[%clk 0:02:59]} 2. c4 {[%clk 0:02:52]}  e6 {[%clk 0:02:59]} 3. Nc3 {[%clk 0:02:51]}  Bb4 {[%clk 0:02:59]} 4. a3 {[%clk 0:02:51]}  Bxc3+ {[%clk 0:02:58]} 5. bxc3 {[%clk 0:02:52]}  d5 {[%clk 0:02:58]} 6. cxd5 {[%clk 0:02:51]}  exd5 {[%clk 0:02:58]} 7. Bg5 {[%clk 0:02:51]}  O-O {[%clk 0:02:54]} 8. e3 {[%clk 0:02:51]}  Nbd7 {[%clk 0:02:50]} 9. Bd3 {[%clk 0:02:51]}  c6 {[%clk 0:02:49]} 10. Qc2 {[%clk 0:02:51]}  Re8 {[%clk 0:02:46]} 11. Bxh7+ {[%clk 0:02:51]}  Kf8 {[%clk 0:02:40]} 12. Bd3 {[%clk 0:02:51]}  Qa5 {[%clk 0:02:36]} 13. Ne2 {[%clk 0:02:49]}  Ne4 {[%clk 0:02:36]} 14. Bf4 {[%clk 0:02:49]}  c5 {[%clk 0:02:17]} 15. O-O {[%clk 0:02:46]}  Ndf6 {[%clk 0:02:15]} 16. f3 {[%clk 0:02:45]}  c4 {[%clk 0:02:14]} 17. Bxe4 {[%clk 0:02:41]}  dxe4 {[%clk 0:02:14]} 18. fxe4 {[%clk 0:02:33]}  Nxe4 {[%clk 0:02:14]} 19. Be5 {[%clk 0:02:33]}  Rxe5 {[%clk 0:01:54]} 20. dxe5 {[%clk 0:02:32]}  Qxe5 {[%clk 0:01:55]} 21. Rf4 {[%clk 0:02:28]}  Nd6 {[%clk 0:01:46]} 22. Qd2 {[%clk 0:02:24]}  Be6 {[%clk 0:01:44]} 23. Qd4 {[%clk 0:02:22]}  Qxd4 {[%clk 0:01:27]} 24. Nxd4 {[%clk 0:02:17]}  Bd5 {[%clk 0:01:22]} 25. Rd1 {[%clk 0:02:18]}  Ne4 {[%clk 0:01:17]} 26. Ne2 {[%clk 0:02:11]}  Bc6 {[%clk 0:01:14]} 27. Rd4 {[%clk 0:02:11]}  Re8 {[%clk 0:01:11]} 28. Rxc4 {[%clk 0:02:10]}  Nd2 {[%clk 0:01:11]} 29. Rcd4 {[%clk 0:02:09]}  Nb3 {[%clk 0:01:06]} 30. Rb4 {[%clk 0:02:08]}  Rxe3 {[%clk 0:01:05]} 31. Rf2 {[%clk 0:01:58]}  Nc5 {[%clk 0:01:01]} 32. Nf4 {[%clk 0:01:51]}  Kg8 {[%clk 0:01:00]} 33. h3 {[%clk 0:01:50]}  Rxc3 {[%clk 0:00:59]} 34. Rd4 {[%clk 0:01:49]}  Rxa3 {[%clk 0:00:48]} 35. Rd8+ {[%clk 0:01:49]}  Kh7 {[%clk 0:00:48]} 36. Nh5 {[%clk 0:01:49]}  f6 {[%clk 0:00:44]} 37. Rc8 {[%clk 0:01:48]}  Ne4 {[%clk 0:00:40]} 38. Rc2 {[%clk 0:01:45]}  Kg6 {[%clk 0:00:34]} 39. Nf4+ {[%clk 0:01:44]}  Kf5 {[%clk 0:00:34]} 40. Nh5 {[%clk 0:01:44]}  g6 {[%clk 0:00:32]} 41. Ng7+ {[%clk 0:01:44]}  Kg5 {[%clk 0:00:32]} 42. Kh2 {[%clk 0:01:41]}  f5 {[%clk 0:00:28]} 43. Ne6+ {[%clk 0:01:39]}  Kf6 {[%clk 0:00:26]} 44. Nd4 {[%clk 0:01:40]}  Bd5 {[%clk 0:00:24]} 45. Nb5 {[%clk 0:01:40]}  Ra1 {[%clk 0:00:21]} 46. Nc7 {[%clk 0:01:39]}  Bc6 {[%clk 0:00:21]} 47. Ra8 {[%clk 0:01:26]}  g5 {[%clk 0:00:20]} 48. Ne8+ {[%clk 0:01:17]}  Ke7 {[%clk 0:00:20]} 49. Ng7 {[%clk 0:01:17]}  Kf6 {[%clk 0:00:20]} 50. Nh5+ {[%clk 0:01:16]}  Kg6 {[%clk 0:00:21]} 51. Ng3 {[%clk 0:01:17]}  Nxg3 {[%clk 0:00:17]} 52. Kxg3 {[%clk 0:01:17]}  f4+ {[%clk 0:00:15]} 53. Kh2 {[%clk 0:01:17]}  a5 {[%clk 0:00:15]} 54. Rc5 {[%clk 0:01:14]}  Ra2 {[%clk 0:00:15]} 55. Kg1 {[%clk 0:01:07]}  Rxg2+ {[%clk 0:00:15]} 56. Kf1 {[%clk 0:01:08]}  Rg3 {[%clk 0:00:14]} 57. Raxa5 {[%clk 0:01:06]}  Bg2+ {[%clk 0:00:13]} 58. Kf2 {[%clk 0:01:07]}  b6 {[%clk 0:00:10]} 59. Ra6 {[%clk 0:01:06]}  Bxh3 {[%clk 0:00:10]} 60. Rxb6+ {[%clk 0:01:06]}  Kh5 {[%clk 0:00:11]} 61. Rbb5 {[%clk 0:01:00]}  Rg2+ {[%clk 0:00:10]} 62. Kf3 {[%clk 0:00:56]}  Rg3+ {[%clk 0:00:11]} 63. Kf2 {[%clk 0:00:57]}  Rg2+ {[%clk 0:00:08]} 64. Kf3 {[%clk 0:00:57]}  Rg3+ {[%clk 0:00:08]} 65. Kf2 {[%clk 0:00:56]} 1/2-1/2


[Site "https://www.chess.com"]